fUSD/lending_fUSD_20241004
["ID","MTS","AMOUNT","RATE_DAILY","PERIOD"]
[339855383,1728072641609,-970.91,0.00036987,120]
[339855384,1728072641619,-500.0,0.00036987,120]
[339855385,1728072641628,-2014.6,0.00036987,120]
[339855386,1728072641638,-1456.9,0.00036987,120]
[339855387,1728072641647,-716.18,0.00036987,120]
[339855388,1728072641657,-520.29,0.00036987,120]
[339855389,1728072641666,-500.0,0.00036987,120]
[339855390,1728072641676,-500.0,0.00036987,120]
[339855391,1728072641685,-828.01,0.00036987,120]
[339855392,1728072641694,-500.0,0.00036987,120]
[339855393,1728072641704,-1292.56,0.00036987,120]
[339855394,1728072641713,-267.78621843,0.00036987,120]
[339855395,1728072641723,-1500.46,0.00036987,120]
[339855396,1728072641732,-635.49,0.00036987,120]
[339855397,1728072641742,-500.0,0.00036987,120]
[339855398,1728072641751,-500.0,0.00036987,120]
[339855399,1728072641761,-500.0,0.00036987,120]
[339855400,1728072641770,-759.42,0.00036987,120]
[339855401,1728072641779,-500.0,0.00036987,120]
[339855402,1728072641789,-500.0,0.00036987,120]
[339855403,1728072641798,-2225.9,0.00036987,120]
[339855404,1728072641807,-1528.96,0.00036987,120]
[339855405,1728072641817,-500.0,0.00036987,120]
[339855406,1728072641826,-500.0,0.00036987,120]
[339855407,1728072641835,-523.46,0.00036987,120]
[339855408,1728072641845,-3051.38,0.00036987,120]
[339855409,1728072641854,-679.09,0.00036987,120]
[339855410,1728072641864,-898.65,0.00036987,120]
[339855411,1728072641873,-500.0,0.00036987,120]
[339855412,1728072641882,-897.3,0.00036987,120]
[339855413,1728072641892,-500.0,0.00036987,120]
[339855414,1728072641901,-756.0,0.00036987,120]
[339855415,1728072641911,-1596.18,0.00036987,120]
[339855416,1728072641920,-500.0,0.00036987,120]
[339855417,1728072641929,-500.0,0.00036987,120]
[339855418,1728072641939,-1964.44,0.00036987,120]
[339855419,1728072641949,-500.0,0.00036987,120]
[339855420,1728072641958,-500.0,0.00036987,120]
[339855421,1728072641968,-548.42,0.00036987,120]
[339855422,1728072641981,-614.47644806,0.00036987,120]
[339855423,1728072641992,-500.0,0.00036987,120]
[339855424,1728072642001,-500.0,0.00036987,120]
[339855425,1728072642010,-500.0,0.00036987,120]
[339855426,1728072642021,-500.0,0.00036987,120]
[339855427,1728072642032,-669.72,0.00036987,120]
[339855428,1728072642042,-346.47,0.00036987,120]
[339855429,1728072642052,-500.0,0.00036987,120]
[339855430,1728072642061,-500.0,0.00036987,120]
[339855431,1728072642071,-500.0,0.00036987,120]
[339855432,1728072642080,-680.07,0.00036987,120]
[339855433,1728072642089,-500.0,0.00036987,120]
[339855434,1728072642099,-500.0,0.00036987,120]
[339855435,1728072642108,-500.0,0.00036987,120]
[339855436,1728072642117,-615.31,0.00036987,120]
[339855437,1728072642127,-608.59,0.00036987,120]
[339855438,1728072642136,-500.0,0.00036987,120]
[339855439,1728072642146,-500.0,0.00036987,120]
[339855440,1728072642156,-500.0,0.00036987,120]
[339855441,1728072642165,-500.0,0.00036987,120]
[339855442,1728072642175,-500.0,0.00036987,120]
[339855443,1728072642184,-500.0,0.00036987,120]
[339855444,1728072642194,-345.78,0.00036987,120]
[339855445,1728072642203,-500.0,0.00036987,120]
[339855446,1728072642213,-500.0,0.00036987,120]
[339855447,1728072642223,-500.0,0.00036987,120]
[339855448,1728072642232,-500.0,0.00036987,120]
[339855449,1728072642242,-500.0,0.00036987,120]
[339855450,1728072642252,-500.0,0.00036987,120]
[339855451,1728072642262,-500.0,0.00036987,120]
[339855452,1728072642272,-604.81,0.00036987,120]
[339855453,1728072642282,-500.0,0.00036987,120]
[339855454,1728072642291,-500.0,0.00036987,120]
[339855455,1728072642300,-500.0,0.00036987,120]
[339855456,1728072642310,-500.0,0.00036987,120]
[339855457,1728072642319,-500.0,0.00036987,120]
[339855458,1728072642329,-500.0,0.00036987,120]
[339855459,1728072642339,-500.0,0.00036987,120]
[339855460,1728072642348,-500.0,0.00036987,120]
[339855461,1728072642358,-500.0,0.00036987,120]
[339855462,1728072642367,-500.0,0.00036987,120]
[339855463,1728072642377,-500.0,0.00036987,120]
[339855464,1728072642387,-536.9,0.00036987,120]
[339855465,1728072642396,-500.0,0.00036987,120]
[339855466,1728072642406,-500.0,0.00036987,120]
[339855467,1728072642416,-500.0,0.00036987,120]
[339855468,1728072642425,-500.0,0.00036987,120]
[339855469,1728072642435,-500.0,0.00036987,120]
[339855470,1728072642444,-500.0,0.00036987,120]
[339855471,1728072642454,-500.0,0.00036987,120]
[339855472,1728072642464,-500.0,0.00036987,120]
[339855473,1728072642473,-626.73,0.00036987,120]
[339855474,1728072642483,-500.0,0.00036987,120]
[339855475,1728072642493,-500.0,0.00036987,120]
[339855476,1728072642502,-500.0,0.00036987,120]
[339855477,1728072642512,-987.54,0.00036987,120]
[339855478,1728072642521,-500.0,0.00036987,120]
[339855479,1728072642531,-500.0,0.00036987,120]
[339855480,1728072642541,-500.0,0.00036987,120]
[339855481,1728072642551,-500.0,0.00036987,120]
[339855482,1728072642560,-500.0,0.00036987,120]
[339855483,1728072642570,-500.0,0.00036987,120]
[339855484,1728072642580,-500.0,0.00036987,120]
[339855485,1728072642589,-500.0,0.00036987,120]
[339855487,1728072642599,-504.11,0.00036987,120]
[339855489,1728072642609,-500.0,0.00036987,120]
[339855491,1728072642618,-500.0,0.00036987,120]
[339855493,1728072642628,-500.0,0.00036987,120]
[339855495,1728072642637,-500.0,0.00036987,120]
[339855496,1728072642647,-350.37486718,0.00036987,120]
[339855498,1728072642657,-1250.07,0.00036987,120]
[339855499,1728072642668,-500.0,0.00036987,120]
[339855500,1728072642678,-500.0,0.00036987,120]
[339855501,1728072642688,-172.47988632,0.00036987,120]
[339855502,1728072642698,-500.0,0.00036987,120]
[339855503,1728072642708,-500.0,0.00036987,120]
[339855504,1728072642718,-534.02,0.00036987,120]
[339855505,1728072642727,-500.0,0.00036987,120]
[339855506,1728072642738,-500.0,0.00036987,120]
[339855507,1728072642748,-676.97,0.00036987,120]
[339855508,1728072642758,-767.38,0.00036987,120]
[339855509,1728072642768,-616.08,0.00036987,120]
[339855510,1728072642778,-1132.33,0.00036987,24]
[339855511,1728072642788,-500.0,0.00036987,120]
[339855512,1728072642798,-500.0,0.00036987,120]
[339855513,1728072642808,-500.0,0.00036987,120]
[339855514,1728072642817,-500.0,0.00036987,120]
[339855515,1728072642827,-2379.6,0.00036987,120]
[339855516,1728072642836,-500.0,0.00036987,120]
[339855517,1728072642847,-500.0,0.00036987,120]
[339855518,1728072642856,-517.9940123,0.00036987,120]
[339855519,1728072642866,-500.0,0.00036987,120]
[339855520,1728072642876,-664.66,0.00036987,120]
[339855521,1728072642886,-500.0,0.00036987,120]
[339855522,1728072642896,-500.0,0.00036987,120]
[339855523,1728072642906,-500.0,0.00036987,120]
[339855524,1728072642916,-500.0,0.00036987,120]
[339855525,1728072642926,-1331.28,0.00036987,120]
[339855526,1728072642936,-500.0,0.00036987,120]
[339855527,1728072642947,-1012.06,0.00036987,120]
[339855528,1728072643181,-500.0,0.00036987,120]
[339855530,1728072643191,-818.68,0.00036987,120]
[339855531,1728072643200,-500.0,0.00036987,120]
[339855532,1728072643209,-500.0,0.00036987,120]
[339855533,1728072643218,-500.0,0.00036987,120]
[339855534,1728072643228,-500.0,0.00036987,120]
[339855535,1728072643238,-500.0,0.00036987,120]
[339855536,1728072643247,-538.99,0.00036987,120]
[339855537,1728072643256,-500.0,0.00036987,120]
[339855538,1728072643265,-676.85,0.00036987,120]
[339855539,1728072643274,-3067.57,0.00036987,120]
[339855540,1728072643284,-210.69,0.00036987,120]
[339855542,1728072643293,-500.0,0.00036987,15]
[339855544,1728072643302,-353.68668098,0.00036987,15]
[339855545,1728072643311,-500.0,0.00036987,15]
[339855546,1728072643319,-500.0,0.00036987,15]
[339855547,1728072643328,-172.28440329,0.00036987,15]
[339855548,1728072643337,-500.0,0.00036987,120]
[339855549,1728072643346,-500.0,0.00036987,120]
[339855550,1728072643357,-500.0,0.00036987,120]
[339855551,1728072643365,-500.0,0.00036988,120]
[339855552,1728072643374,-500.0,0.00036988,120]
[339855553,1728072643383,-500.0,0.00036988,120]
[339855554,1728072643392,-388.67163234,0.00036988,120]
[339855555,1728072643401,-500.0,0.00036988,120]
[339855556,1728072643410,-537.09,0.00036988,120]
[339855557,1728072643419,-820.07,0.00036988,120]
[339855558,1728072643428,-500.0,0.00036988,120]
[339855559,1728072643437,-500.0,0.00036988,120]
[339855560,1728072643446,-220.32,0.00036988,120]
[339855561,1728072643455,-633.53,0.00036988,120]
[339855562,1728072643464,-500.0,0.00036988,120]
[339855563,1728072643473,-810.03,0.00036988,120]
[339855564,1728072643481,-500.0,0.00036988,120]
[339855565,1728072643490,-500.0,0.00036988,120]
[339855566,1728072643499,-192.42,0.00036988,120]
[339855567,1728072643508,-500.0,0.00036988,120]
[339855568,1728072643517,-500.0,0.00036988,120]
[339855569,1728072643526,-500.0,0.00036988,120]
[339855570,1728072643535,-500.0,0.00036988,120]
[339855571,1728072643544,-500.0,0.00036988,120]
[339855572,1728072643553,-500.0,0.00036988,120]
[339855573,1728072643562,-500.0,0.00036988,120]
[339855574,1728072643571,-500.0,0.00036988,120]
[339855575,1728072643580,-500.0,0.00036988,120]
[339855576,1728072643589,-500.0,0.00036988,120]
[339855577,1728072643598,-500.0,0.00036988,120]
[339855578,1728072643608,-500.0,0.00036988,120]
[339855579,1728072643617,-560.87,0.00036988,120]
[339855580,1728072643626,-535.45,0.00036988,120]
[339855581,1728072643635,-500.0,0.00036988,120]
[339855582,1728072643644,-500.0,0.00036988,120]
[339855583,1728072643653,-500.0,0.00036988,120]
[339855584,1728072643663,-500.0,0.00036988,120]
[339855585,1728072643672,-500.0,0.00036988,120]
[339855586,1728072643681,-500.0,0.00036988,120]
[339855587,1728072643690,-500.0,0.00036988,120]
[339855588,1728072643699,-500.0,0.00036988,120]
[339855589,1728072643709,-500.0,0.00036988,120]
[339855590,1728072643719,-500.0,0.00036988,120]
[339855591,1728072643728,-500.0,0.00036988,120]
[339855592,1728072643739,-500.0,0.00036988,120]
[339855593,1728072643748,-266.19032595,0.00036988,120]
[339855594,1728072643757,-500.0,0.00036988,120]
[339855595,1728072643766,-500.0,0.00036988,120]
[339855596,1728072643775,-779.62,0.00036988,120]
[339855597,1728072643785,-500.0,0.00036988,120]
[339855598,1728072643794,-500.0,0.00036988,120]
[339855599,1728072643803,-560.62907355,0.00036988,120]
[339855600,1728072643812,-500.0,0.00036988,120]
[339855601,1728072643821,-500.0,0.00036988,120]
[339855602,1728072643830,-500.0,0.00036988,120]
[339855603,1728072643839,-500.0,0.00036988,120]
[339855604,1728072643848,-550.0,0.00036988,120]
[339855605,1728072643858,-430.27400255,0.00036988,120]
[339855606,1728072643867,-150.0,0.00036988,120]
[339855607,1728072643876,-500.0,0.00036988,120]
[339855608,1728072643886,-1880.23,0.00036988,120]
[339855609,1728072643895,-500.0,0.00036988,120]
[339855610,1728072643904,-500.0,0.00036988,120]
[339855611,1728072643913,-500.0,0.00036988,120]
[339855612,1728072643923,-500.0,0.00036988,120]
[339855613,1728072643932,-509.89,0.00036988,120]
[339855614,1728072643941,-500.0,0.00036988,120]
[339855615,1728072643950,-619.41971032,0.00036988,120]
[339855616,1728072643960,-500.0,0.00036988,120]
[339855617,1728072643969,-500.0,0.00036988,120]
[339855618,1728072643982,-500.0,0.00036988,7]
[339855619,1728072643991,-500.0,0.00036988,120]
[339855620,1728072644001,-500.0,0.00036988,120]
[339855621,1728072644011,-500.0,0.00036989,120]
[339855622,1728072644021,-847.37,0.00036989,120]
[339855623,1728072644030,-500.0,0.00036989,120]
[339855624,1728072644039,-500.0,0.00036989,120]
[339855625,1728072644050,-500.0,0.00036989,120]
[339855626,1728072644059,-500.0,0.00036989,120]
[339855627,1728072644069,-500.0,0.00036989,120]
[339855628,1728072644078,-500.0,0.00036989,120]
[339855629,1728072644088,-500.0,0.00036989,120]
[339855630,1728072644097,-500.0,0.00036989,120]
[339855631,1728072644106,-500.0,0.00036989,120]
[339855632,1728072644115,-500.0,0.00036989,120]
[339855633,1728072644124,-500.0,0.00036989,120]
[339855634,1728072644134,-500.0,0.00036989,120]
[339855635,1728072644143,-500.0,0.00036989,120]
[339855636,1728072644152,-500.0,0.00036989,120]
[339855637,1728072644162,-500.0,0.00036989,120]
[339855638,1728072644171,-500.0,0.00036989,120]
[339855639,1728072644181,-500.0,0.00036989,120]
[339855640,1728072644190,-500.0,0.00036989,120]
[339855641,1728072644200,-500.0,0.00036989,120]
[339855642,1728072644209,-500.0,0.00036989,120]
[339855643,1728072644219,-500.0,0.00036989,120]
[339855644,1728072644228,-500.0,0.00036989,120]
[339855645,1728072644238,-561.67,0.00036989,120]
[339855646,1728072644248,-913.88,0.00036989,120]
[339855647,1728072644257,-500.0,0.00036989,120]
[339855648,1728072644267,-683.76,0.00036989,120]
[339855649,1728072644276,-507.49,0.00036989,120]
[339855650,1728072644286,-628.61,0.00036989,120]
[339855651,1728072644295,-500.0,0.00036989,120]
[339855652,1728072644304,-500.0,0.00036989,120]
[339855653,1728072644314,-604.91,0.00036989,120]
[339855654,1728072644323,-500.0,0.00036989,120]
[339855655,1728072644333,-500.0,0.00036989,120]
[339855656,1728072644342,-500.0,0.00036989,120]
[339855657,1728072644352,-511.93,0.00036989,120]
[339855658,1728072644360,-736.13,0.00036989,120]
[339855659,1728072644369,-500.0,0.00036989,120]
[339855660,1728072644379,-2117.96,0.00036989,120]
[339855661,1728072644388,-500.0,0.00036989,120]
[339855662,1728072644397,-1972.03,0.00036989,120]
[339855663,1728072644407,-199.15185173,0.0003699,2]
[339855664,1728072644416,-2431.91875033,0.00036996,2]
[339855665,1728072644426,-178.59057591,0.00036997,2]
[339855666,1728072644435,-157.100504,0.00036998,119]
[339855667,1728072644444,-500.0,0.00036998,120]
[339855668,1728072644454,-500.0,0.00036998,120]
[339855669,1728072644463,-500.0,0.00036998,120]
[339855670,1728072644472,-500.0,0.00036998,120]
[339855671,1728072644482,-500.0,0.00036998,120]
[339855672,1728072644492,-500.0,0.00036998,120]
[339855673,1728072644502,-500.0,0.00036998,120]
[339855674,1728072644511,-500.0,0.00036998,120]
[339855675,1728072644520,-500.0,0.00036998,120]
[339855676,1728072644529,-463.37850586,0.00036998,120]
[339855677,1728072644547,-36.62149414,0.00036998,120]
[339855678,1728072644556,-500.0,0.00036998,120]
[339855679,1728072644567,-249.64547996,0.00036998,120]
[339855680,1728072644591,-250.35452004,0.00036998,120]
[339855681,1728072644601,-62.03547996,0.00036998,120]
[339855682,1728072644616,-437.96452004,0.00036998,120]
[339855683,1728072644626,-500.0,0.00036998,120]
[339855684,1728072644636,-359.03547996,0.00036998,120]
[339855685,1728072645222,-610.9695,0.00032471,2]
[339855686,1728072645231,-407.49378435,0.00036923,2]
[339855687,1728072645242,-815.18452004,0.00036998,120]
[339855688,1728072645251,-500.0,0.00036998,120]
[339855689,1728072645261,-500.0,0.00036998,120]
[339855690,1728072645270,-189.04084382,0.00036998,120]
[339855691,1728072645324,-1130.47915618,0.00036998,120]
[339855692,1728072645334,-500.0,0.00036998,120]
[339855693,1728072645342,-300.0,0.00036999,30]
[339855694,1728072645352,-300.0,0.00036999,30]
[339855695,1728072645361,-500.0,0.00036999,10]
[339855696,1728072645370,-215.29024087,0.00036999,120]
[339855697,1728072645380,-81.48060295,0.00036999,120]
[339855698,1728072645391,-418.51939705,0.00036999,120]
[339855699,1728072645401,-263.19779258,0.00036999,120]
[339855700,1728072645410,-8382.14677419,0.00037,15]
[339855701,1728072645421,-284608.52588325,0.00037,15]
[339855702,1728072645431,-845729.59,0.00037,15]
[339855703,1728072645440,-157.100504,0.00037048,120]
[339855704,1728072645449,-168.15,0.0003711,2]
[339855705,1728072645458,-151.100504,0.00037148,120]
[339855706,1728072645467,-157.100504,0.00037248,120]
[339855707,1728072645477,-500.0,0.0003726,120]
[339855708,1728072645486,-500.0,0.0003726,120]
[339855709,1728072645495,-500.0,0.0003726,120]
[339855710,1728072645504,-500.0,0.0003726,120]
[339855711,1728072645513,-500.0,0.0003726,120]
[339855712,1728072645523,-500.0,0.0003726,120]
[339855713,1728072645532,-500.0,0.0003726,120]
[339855714,1728072645541,-500.0,0.0003726,7]
[339855715,1728072645550,-621.73,0.0003726,120]
[339855716,1728072645559,-500.0,0.0003726,120]
[339855717,1728072645569,-500.0,0.0003726,120]
[339855718,1728072645578,-500.0,0.0003726,120]
[339855719,1728072645587,-593.63,0.0003726,120]
[339855720,1728072645596,-500.0,0.0003726,120]
[339855721,1728072645605,-500.0,0.0003726,120]
[339855722,1728072645614,-500.0,0.0003726,120]
[339855723,1728072645623,-500.0,0.0003726,120]
[339855724,1728072645633,-500.0,0.0003726,120]
[339855725,1728072645642,-267.22913308,0.0003726,120]
[339855726,1728072645651,-500.0,0.0003726,120]
[339855727,1728072645660,-736.09,0.0003726,120]
[339855728,1728072645670,-500.0,0.0003726,120]
[339855729,1728072645679,-500.0,0.0003726,120]
[339855730,1728072645689,-521.49,0.0003726,120]
[339855732,1728072645698,-845.86,0.0003726,120]
[339855733,1728072645708,-867.68,0.0003726,120]
[339855734,1728072645718,-500.0,0.0003726,120]
[339855735,1728072645730,-500.0,0.0003726,120]
[339855736,1728072645739,-500.0,0.0003726,120]
[339855737,1728072645749,-500.0,0.0003726,120]
[339855738,1728072645758,-645.66,0.0003726,120]
[339855739,1728072645767,-625.52,0.0003726,120]
[339855740,1728072645776,-500.0,0.0003726,120]
[339855741,1728072645786,-692.74,0.0003726,120]
[339855742,1728072645795,-526.31,0.0003726,120]
[339855744,1728072645804,-500.0,0.0003726,120]
[339855745,1728072645813,-542.75,0.0003726,120]
[339855746,1728072645822,-500.0,0.0003726,120]
[339855747,1728072645831,-1018.13,0.0003726,120]
[339855748,1728072645840,-500.0,0.0003726,120]
[339855749,1728072645849,-500.0,0.0003726,120]
[339855750,1728072645858,-500.0,0.0003726,120]
[339855751,1728072645868,-733.84,0.0003726,120]
[339855752,1728072645877,-500.0,0.0003726,120]
[339855754,1728072645886,-500.0,0.0003726,120]
[339855755,1728072645895,-500.0,0.0003726,120]
[339855756,1728072645905,-500.0,0.0003726,120]
[339855757,1728072645914,-500.0,0.0003726,120]
[339855758,1728072645923,-500.0,0.0003726,120]
[339855759,1728072645935,-500.0,0.0003726,120]
[339855760,1728072645944,-632.41,0.0003726,120]
[339855761,1728072645955,-515.7,0.0003726,120]
[339855762,1728072645968,-500.0,0.0003726,120]
[339855763,1728072645980,-500.0,0.0003726,120]
[339855764,1728072645990,-615.85,0.0003726,120]
[339855765,1728072645999,-500.0,0.0003726,120]
[339855766,1728072646009,-814.37,0.0003726,120]
[339855767,1728072646020,-749.53,0.0003726,120]
[339855768,1728072646031,-1419.44,0.0003726,120]
[339855769,1728072646040,-1657.52,0.0003726,120]
[339855770,1728072646049,-562.7,0.0003726,120]
[339855771,1728072646060,-500.0,0.0003726,120]
[339855772,1728072646070,-500.0,0.0003726,120]
[339855773,1728072646079,-500.0,0.0003726,120]
[339855774,1728072646090,-2805.53,0.0003726,120]
[339855775,1728072646099,-508.83,0.0003726,120]
[339855776,1728072646109,-615.24,0.0003726,120]
[339855777,1728072646119,-500.0,0.0003726,120]
[339855778,1728072646130,-500.0,0.0003726,120]
[339855779,1728072646140,-1212.97,0.0003726,120]
[339855780,1728072646151,-500.0,0.0003726,120]
[339855781,1728072646161,-1217.4,0.0003726,120]
[339855782,1728072646171,-500.0,0.0003726,120]
[339855783,1728072646181,-1231.73,0.0003726,120]
[339855784,1728072646190,-500.0,0.0003726,120]
[339855785,1728072646202,-532.52,0.0003726,120]
[339855786,1728072646212,-855.6,0.0003726,120]
[339855787,1728072646222,-500.0,0.0003726,120]
[339855789,1728072646233,-500.0,0.0003726,21]
[339855791,1728072646243,-1012.3,0.0003726,120]
[339855793,1728072646252,-500.0,0.0003726,120]
[339855795,1728072646260,-500.0,0.0003726,14]
[339855797,1728072646269,-500.0,0.0003726,120]
[339855799,1728072646278,-1440.62,0.0003726,120]
[339855801,1728072646287,-500.0,0.0003726,120]
[339855803,1728072646296,-566.19,0.0003726,120]
[339855805,1728072646306,-659.64,0.0003726,120]
[339855807,1728072646315,-500.0,0.0003726,120]
[339855809,1728072646327,-1844.03,0.0003726,120]
[339855811,1728072646338,-3111.13,0.0003726,120]
[339855813,1728072646348,-500.0,0.0003726,120]
[339855815,1728072646358,-686.44,0.0003726,120]
[339855817,1728072646368,-500.0,0.0003726,120]
[339855819,1728072646379,-500.0,0.0003726,120]
[339855821,1728072646389,-500.0,0.0003726,120]
[339855823,1728072646398,-1560.97,0.0003726,120]
[339855824,1728072646407,-300.0,0.00037261,30]
[339855826,1728072646416,-500.0,0.00037261,10]
[339855828,1728072646425,-500.0,0.00037261,120]
[339855830,1728072646435,-500.0,0.00037261,120]
[339855832,1728072646444,-500.0,0.00037261,120]
[339855834,1728072646453,-1336.45,0.00037261,120]
[339855835,1728072646462,-500.0,0.00037261,120]
[339855836,1728072646472,-1336.48,0.00037261,120]
[339855837,1728072646481,-500.0,0.00037261,120]
[339855838,1728072646490,-500.0,0.00037261,120]
[339855839,1728072646499,-538.94,0.00037261,120]
[339855840,1728072646508,-500.0,0.00037261,120]
[339855841,1728072646517,-757.12,0.00037261,120]
[339855842,1728072646525,-616.09,0.00037261,120]
[339855843,1728072646534,-500.0,0.00037261,120]
[339855844,1728072646543,-500.0,0.00037261,120]
[339855845,1728072646552,-500.0,0.00037261,120]
[339855846,1728072646561,-1132.41,0.00037261,120]
[339855847,1728072646570,-894.14,0.00037261,120]
[339855848,1728072646579,-500.0,0.00037261,120]
[339855849,1728072646588,-500.0,0.00037261,120]
[339855850,1728072646597,-592.05,0.00037261,120]
[339855851,1728072646607,-500.0,0.00037261,120]
[339855852,1728072646615,-671.38,0.00037261,120]
[339855853,1728072646624,-500.0,0.00037261,120]
[339855854,1728072646633,-500.0,0.00037261,120]
[339855855,1728072646642,-1846.3,0.00037261,120]
[339855856,1728072646652,-196.61300128,0.00037261,120]
[339855857,1728072646661,-500.0,0.00037261,120]
[339855858,1728072646670,-889.97,0.00037261,120]
[339855859,1728072646679,-500.0,0.00037261,120]
[339855860,1728072646688,-4058.58,0.00037261,120]
[339855861,1728072646697,-628.76,0.00037261,120]
[339855862,1728072646705,-3402.8,0.00037261,120]
[339855863,1728072646714,-500.0,0.00037261,120]
[339855864,1728072646724,-1784.25,0.00037261,120]
[339855865,1728072646733,-500.0,0.00037261,120]
[339855866,1728072646742,-755.9,0.00037261,120]
[339855867,1728072646751,-500.0,0.00037261,120]
[339855868,1728072646761,-500.0,0.00037261,120]
[339855869,1728072646770,-970.91,0.00037261,120]
[339855870,1728072646779,-500.0,0.00037261,120]
[339855871,1728072646788,-2014.6,0.00037261,120]
[339855872,1728072646797,-1456.9,0.00037261,120]
[339855873,1728072646806,-716.18,0.00037261,120]
[339855874,1728072646815,-520.29,0.00037261,120]
[339855875,1728072646824,-636.20655236,0.00037261,120]
[339855876,1728072646833,-500.0,0.00037261,120]
[339855877,1728072646843,-828.01,0.00037261,120]
[339855878,1728072646853,-500.0,0.00037261,120]
[339855879,1728072646862,-1292.56,0.00037261,120]
[339855880,1728072646871,-1500.46,0.00037261,120]
[339855881,1728072646880,-635.49,0.00037261,120]
[339855882,1728072646890,-500.0,0.00037261,120]
[339855883,1728072646899,-161.44280518,0.00037261,120]
[339855884,1728072646908,-500.0,0.00037261,120]
[339855885,1728072646917,-759.42,0.00037261,120]
[339855886,1728072646928,-500.0,0.00037261,120]
[339855887,1728072646937,-500.0,0.00037261,120]
[339855888,1728072646946,-2225.9,0.00037261,120]
[339855889,1728072646955,-1528.96,0.00037261,120]
[339855890,1728072646965,-500.0,0.00037261,120]
[339855891,1728072646977,-500.0,0.00037261,120]
[339855892,1728072646987,-523.46,0.00037261,120]
[339855893,1728072646996,-3051.38,0.00037261,120]
[339855894,1728072647005,-679.09,0.00037261,120]
[339855895,1728072647016,-898.65,0.00037261,120]
[339855896,1728072647027,-500.0,0.00037261,120]
[339855897,1728072647037,-897.3,0.00037261,120]
[339855898,1728072647046,-500.0,0.00037261,120]
[339855899,1728072647056,-756.0,0.00037261,120]
[339855900,1728072647066,-1596.18,0.00037261,120]
[339855901,1728072647075,-500.0,0.00037261,120]
[339855902,1728072647085,-1964.44,0.00037261,120]
[339855903,1728072647094,-500.0,0.00037261,120]
[339855904,1728072647103,-500.0,0.00037261,120]
[339855905,1728072647112,-548.42,0.00037261,120]
[339855906,1728072647122,-500.0,0.00037261,120]
[339855907,1728072647132,-500.0,0.00037261,120]
[339855908,1728072647143,-499.7924,0.00037261,120]
[339855909,1728072647154,-500.0,0.00037261,120]
[339855910,1728072647163,-669.72,0.00037261,120]
[339855911,1728072647172,-346.47,0.00037261,120]
[339855912,1728072647183,-500.0,0.00037261,120]
[339855913,1728072647192,-500.0,0.00037261,120]
[339855914,1728072647200,-500.0,0.00037261,120]
[339855915,1728072647209,-680.07,0.00037261,120]
[339855916,1728072647218,-500.0,0.00037261,120]
[339855917,1728072647227,-500.0,0.00037261,120]